Cogmind - Beta 13 @@@ ROGUE MODE // 2024.04.06 @ 13:11:22 Player: darki Result: Destroyed by BK-WRS(R) with Subdweller Laser Performance ------------- Evolutions (0) 0 Regions Visited (2) 400 Robots Destroyed (76) 380 Value Destroyed (1114) 1114 Prototype IDs (0) 0 Alien Tech Used (0) 0 Bonus (8) 8 TOTAL SCORE: 1902 Bonus ------- High Alert Combat Kills 8 Cogmind --------- Core Integrity 0/250 Matter 85/300 Energy 228/250 System Corruption 0% Temperature Cool (6) Movement Treading (320) Ox2 Location -10/Subcaves Parts ------- > --- POWER (1) -------- Ion Engine > --- PROPULSION (2) --- Light Treads Improved Treads > --- UTILITY (2) ------ Huge Storage Unit Hardened Light Armor Plating > --- WEAPON (2) ------- Improved Light Cannon Flamer > --- INVENTORY (25) --- Light Treads Medium Matter Pod (100) Medium Matter Pod (100) Large Matter Pod (150) Large Matter Pod (0) Hardened Light Armor Plating Hardened Light Armor Plating Shield Generator Heavy EM Pulse Gun Riot Gun Subdweller Machine Gun Light Cannon Improved Light Cannon Improved Light Cannon Battle Cannon Grenade Launcher Peak State ------------ > --- POWER ------------ Ion Engine > --- PROPULSION ------- Improved Treads Improved Treads > --- UTILITY ---------- Huge Storage Unit Shield Generator > --- WEAPON ----------- Improved Light Cannon Improved Light Cannon > --- INVENTORY -------- Ion Engine Ion Engine Light Treads Light Treads Improved Treads Improved Treads Medium Matter Pod Medium Matter Pod Large Matter Pod Large Matter Pod Hardened Light Armor Plating Hardened Light Armor Plating Hardened Light Armor Plating Hardened Light Armor Plating Shield Generator Heavy EM Pulse Gun Heavy EM Pulse Gun Riot Gun Subdweller Machine Gun Light Cannon Improved Light Cannon Battle Cannon Grenade Launcher Grenade Launcher Flamer [Rating: 16] Favorites ----------- Power Ion Engine Engine Ion Engine Propulsion Improved Treads Treads Improved Treads Leg Aluminum Leg Utility Shield Generator Device Shield Generator Storage Huge Storage Unit Processor Targeting Computer Protection Hardened Light Armor Plating Weapon Improved Light Cannon Energy Gun Small Laser Ballistic Cannon Improved Light Cannon Launcher Grenade Launcher Special Weapon Flamer Build | -11 -10 -10 ------- Run | Yrd Mat Sub Slots Evolved . | . . . Power . | . . . Propulsion . | . . . Utility . | . . . Weapon . | . . . Parts Attached 22 | . 12 10 Power 2 | . . 2 Engine 2 | . . 2 Core . | . . . Reactor . | . . . Propulsion 5 | . 2 3 Treads 5 | . 2 3 Leg . | . . . Wheel . | . . . Hover . | . . . Flight . | . . . Utility 6 | . 4 2 Device 1 | . 1 . Storage 2 | . 2 . Processor 1 | . 1 . Hackware . | . . . Protection 2 | . . 2 Artifact . | . . . Weapon 9 | . 6 3 Energy Gun . | . . . Energy Cannon . | . . . Ballistic Gun . | . . . Ballistic Cannon 4 | . 4 . Launcher 4 | . 2 2 Special Weapon 1 | . . 1 Impact Weapon . | . . . Slashing Weapon . | . . . Piercing Weapon . | . . . Special Melee Weapon . | . . . Unidentified Prototypes . | . . . Parts Lost 8 | . . 8 Power 2 | . . 2 Propulsion 3 | . . 3 Utility 2 | . . 2 Weapon 1 | . . 1 Highest Loss Streak 7 | . . 7 To Critical Strikes 1 | . . 1 Average Slot Usage (%) 99 | . 99 99 Engine 13 | . 14 13 Treads 27 | . 27 28 Device 13 | . 13 11 Storage 14 | . 14 14 Ballistic Cannon 27 | . 27 25 Naked Turns . | . . . Heaviest Build 98 | 12 95 98 Greatest Support 46 | 20 46 46 Greatest Overweight (x) 2 | . 2 2 Average Overweight (x) 1 | . 1 2 Largest Inventory Capacity 25 | . 25 25 Average Capacity 23 | . 23 25 Most Carried 25 | . 25 25 Average Carried 20 | . 20 23 Final Capacity 25 | 8 25 25 Final Carried 25 | 6 25 16 Class Distribution -------------------- 100% | Mutant Dominant Class ---------------- Mutant | -10/Materials Mutant | -10/Subcaves Resources | -11 -10 -10 ----------- Run | Yrd Mat Sub Matter Collected 3661 | 200 3216 245 Remotely . | . . . Salvage Created 1975 | . 1870 105 Parts 213 | . 207 6 Haulers Intercepted 2 | . 2 . Recyclers Shooed 1 | . 1 . Parts Field Recycled . | . . . Retrieved Matter . | . . . Parts Self-Destructed 7 | . . 7 Prevented . | . . . Kills | -11 -10 -10 ------- Run | Yrd Mat Sub Combat Hostiles Destroyed 23 | . 16 7 Cannons 18 | . 16 2 AOE 5 | . . 5 Classes Destroyed 10 | . 9 1 Worker 76 | . 76 . Builder 28 | . 28 . Tunneler 4 | . 4 . Hauler 2 | . 2 . Recycler 3 | . 3 . Mechanic 1 | . 1 . Watcher 3 | . 3 . Swarmer 6 | . 6 . Grunt 10 | . 10 . Subdweller 7 | . . 7 Best Kill Streak 6 | . 6 5 Combat Bots Only 5 | . 3 5 Max Kills in Single Turn 1 | . 1 1 Gunslinging . | . . . Exploded 1 | . . 1 Melee . | . . . Uniques/NPCs Destroyed . | . . . Combat | -11 -10 -10 -------- Run | Yrd Mat Sub Hostile Shots Fired 129 | . 75 54 Missed 27 | . 21 6 Damage Taken 1663 | . 423 1240 Core 265 | . 61 204 Absorbed by Shields 219 | . 166 53 Core Remaining (%) 100 | 100 . . Volleys Fired 330 | . 305 25 Largest 2 | . 2 2 Hottest 139 | . 78 139 Shots Fired 654 | . 605 49 Gun . | . . . Cannon 632 | . 599 33 Launcher 21 | . 6 15 Special 1 | . . 1 Kinetic 632 | . 599 33 Thermal 1 | . . 1 Explosive 21 | . 6 15 Electromagnetic . | . . . Robot Hit Streak 18 | . 13 18 Robot Miss Streak 5 | . 5 1 Penetration Max . | . . . Secondary Targets . | . . . Shots Hit Robots 308 | . 285 23 Core Hits 141 | . 129 12 Critical Kills . | . . . Critical Parts Destroyed . | . . . Critical Strikes 16 | . 16 . Blast 16 | . 16 . Melee Attacks . | . . . Impact . | . . . Slashing . | . . . Piercing . | . . . Sneak Attacks . | . . . Combat Hostiles . | . . . Follow-up Attacks . | . . . Damage Inflicted 6938 | . 5866 1072 Guns . | . . . Cannons 6141 | . 5866 275 Explosions 786 | . . 786 Melee . | . . . Ramming . | . . . Kinetic 6141 | . 5866 275 Thermal 11 | . . 11 Explosive 786 | . . 786 Electromagnetic . | . . . Impact . | . . . Slashing . | . . . Piercing . | . . . Highest Corruption . | . . . Average Corruption . | . . . Corruption Purged . | . . . Corruption Blocked . | . . . Overload Shots . | . . . Overflow Damage 116 | . 114 2 Projectiles 114 | . 114 . Explosions 2 | . . 2 Melee . | . . . Knockbacks 54 | . 52 2 Impact . | . . . Kinetic 51 | . 49 2 Secondary 3 | . 3 . Self-Inflicted Damage 169 | . . 169 Shots 6 | . . 6 Rammed . | . . . Targets Rammed . | . . . Kicked . | . . . Crushed . | . . . Highest Temperature 264 | . 218 264 Average Temperature 37 | . 35 139 Received Heat Transfer 724 | . 116 608 Effects 2 | . 2 . Energy Bleed 2 | . 2 . Siege Activations . | . . . Robots Corrupted . | . . . Combat Hostiles . | . . . Parts Fried . | . . . Impact Corruptions . | . . . Robots Melted . | . . . Combat Hostiles . | . . . Parts Melted . | . . . Heat Transferred 80 | . . 80 Parts Sabotaged . | . . . Parts Stolen . | . . . Parts Stripped . | . . . Power Chain Reactions . | . . . Alert | -11 -10 -10 ------- Run | Yrd Mat Sub Peak Influence 902 | . 902 . Initial . | . . . Average 357 | . 357 . Maximum Alert Level 3 | . 3 . Low Security (%) 41 | . 41 . Level 1 21 | . 21 . Level 2 19 | . 19 . Level 3 17 | . 17 . Level 4 . | . . . Level 5 . | . . . High Security . | . . . Max Security . | . . . Squads Dispatched 4 | . 4 . Investigation 4 | . 4 . Extermination . | . . . Reinforcement . | . . . Assault . | . . . Garrison . | . . . Intercept . | . . . Searches Triggered . | . . . Construction Impeded . | . . . Haulers Reinforced . | . . . Active Scanning Responses . | . . . Cargo Convoy Interrupts . | . . . Stealth | -11 -10 -10 --------- Run | Yrd Mat Sub Distress Signals 2 | . 2 . Communications Jammed . | . . . Distress Signals . | . . . Times Spotted 43 | . 35 8 Peak Tracking Total 5 | . 5 3 Tactical Retreats 2 | . 2 . Traps | -11 -10 -10 ------- Run | Yrd Mat Sub Traps Triggered 3 | . 3 . Indirectly . | . . . Trap Hack Attempts . | . . . Triggered . | . . . Disarmed . | . . . Reprogrammed . | . . . Reused 1 | . . 1 Traps Extracted . | . . . Installed 1 | . . 1 Triggered . | . . . Most Traps Carried 1 | . . 1 Machines | -11 -10 -10 ---------- Run | Yrd Mat Sub Machines Disabled 20 | . 20 . Max in Single Turn 2 | . 2 . Machines Repaired . | . . . Machines Dismantled . | . . . Machines Sabotaged . | . . . Overloaded Fab Kills . | . . . Hacking | -11 -10 -10 --------- Run | Yrd Mat Sub Machines Accessed 8 | . 8 . Terminals 6 | . 6 . Fabricators . | . . . Repair Stations . | . . . Recycling Units 2 | . 2 . Scanalyzers . | . . . Garrison Access . | . . . Total Hacks 17 | . 17 . Successful 8 | . 8 . Failed 9 | . 9 . Catastrophic 2 | . 2 . Database Lockouts . | . . . Manual 17 | . 17 . Terminals 15 | . 15 . Fabricators . | . . . Repair Stations . | . . . Recycling Units 2 | . 2 . Scanalyzers . | . . . Garrison Access . | . . . Terminal Hacks 1 | . 1 . Robot Analysis 1 | . 1 . Fabricator Hacks . | . . . Repair Station Hacks . | . . . Recycling Unit Hacks . | . . . Scanalyzer . | . . . Garrison Access Hacks . | . . . Unauthorized Hacks 7 | . 7 . Terminals 5 | . 5 . Botnet 4 | . 4 . Disrupt 1 | . 1 . Fabricators . | . . . Repair Stations . | . . . Recycling Units 2 | . 2 . Tunnel 2 | . 2 . Scanalyzers . | . . . Garrison Access . | . . . Data Cores Recovered . | . . . Used . | . . . Hacking Detections 5 | . 5 . Full Trace Events 3 | . 3 . Feedback Events . | . . . Feedback Blocked . | . . . Robot Schematics Acquired . | . . . Robots Built . | . . . Authchips . | . . . Time . | . . . Total Robot Build Rating . | . . . Part Schematics Acquired . | . . . Parts Built . | . . . Authchips . | . . . Time . | . . . Total Part Build Rating . | . . . Parts Repaired . | . . . Time . | . . . Parts Recycled . | . . . Recycled Matter . | . . . Retrieved Matter . | . . . Retrieved Components . | . . . Parts Scanalyzed . | . . . Part Schematics Acquired . | . . . Parts Damaged . | . . . Bothacking | -11 -10 -10 ------------ Run | Yrd Mat Sub Used RIF Installer . | . . . Robots Hacked . | . . . Non-combat . | . . . Combat . | . . . Robot Hacks Applied . | . . . Relay Couplers Released . | . . . Fabnet Peak Effective % . | . . . Robots Rewired . | . . . Allies Hacked . | . . . Hacks Repelled . | . . . Allies | -11 -10 -10 -------- Run | Yrd Mat Sub Total Allies . | . . . Largest Group . | . . . Highest-Rated Group . | . . . Highest-Rated Ally . | . . . Total Orders . | . . . Ally Attacks . | . . . Total Damage . | . . . Kills . | . . . Allies Corrupted . | . . . Allies Melted . | . . . Intel | -11 -10 -10 ------- Run | Yrd Mat Sub Robot Analysis Total 1 | . 1 . Derelict Logs Recovered 1 | . . 1 Drone Launches . | . . . Drone Recoveries . | . . . Exploration | -11 -10 -10 ------------- Run | Yrd Mat Sub Turns Passed 8048 | . 7297 751 Spaces Moved 2256 | 1 2050 205 Core . | . . . Treads 2224 | . 2019 205 Legs 32 | 1 31 . Wheels . | . . . Hover . | . . . Flight . | . . . Fastest Speed 120 | 120 120 320 Average Speed 291 | 120 288 320 Slowest Speed 320 | 120 320 320 Overloaded Moves . | . . . Propulsion Burnouts . | . . . Robots Hopped . | . . . Cave-ins Triggered . | . . . Exploration Rate (%) 38 | 2 99 13 Regions Visited 2 Branch Regions 1 Pre-discovered Areas 2 | . 2 . Known Exits Taken . | . . . Unknown Exits Taken 2 | 1 1 . Scrap Searched 1 | . . 1 Spaces Dug . | . . . Terrain Destroyed 211 | . 127 84 Melee . | . . . Projectile 44 | . 44 . AOE 167 | . 83 84 Terrain Rammed . | . . . Walls Destroyed . | . . . Machines Disabled . | . . . Actions | -11 -10 -10 --------- Run | Yrd Mat Sub Total 3098 | . 2843 255 Wait 429 | . 428 1 Move 2254 | . 2049 205 Hop . | . . . Pick Up 35 | . 29 6 Fast Attach 6 | . 6 . Attach 8 | . . 8 Detach 3 | . 3 . Swap 8 | . 6 2 Drop 24 | . 17 7 Fire 330 | . 305 25 Melee . | . . . Ram . | . . . Kick . | . . . Crush . | . . . Escape Stasis . | . . . Rewire . | . . . Trap 1 | . . 1 Miscellaneous . | . . . Route ------- -11/Scrapyard -10/Materials (discovered 5 exits: [*Mat x3] / [*Min] / [*Sub]) -10/Subcaves (discovered 2 exits: *Mat x2) History --------- Turn | Location | Event 1 | -11/Scrapyard | Discovered new exit (range 0) 1 | -11/Scrapyard | Entered Materials 317 | -10/Materials | Build established: Mutant 732 | -10/Materials | Discovered new exit (range 8) 1366 | -10/Materials | Discovered new exit (range 7) 1913 | -10/Materials | Discovered new exit (range 16) 2077 | -10/Materials | Discovered new exit (range 13) 3154 | -10/Materials | Discovered new exit (range 12) 7298 | -10/Materials | Entered Subcaves 7356 | -10/Subcaves | Discovered new exit (range 11) 7484 | -10/Subcaves | Identified exit to Materials 7555 | -10/Subcaves | Shifting Twisted Machinery released Sub. Machine Gun 7557 | -10/Subcaves | Shifting Twisted Machinery released Flamer 7599 | -10/Subcaves | Shifting Twisted Machinery released Battle Cannon 7608 | -10/Subcaves | Shifting Twisted Machinery released Riot Gun 7826 | -10/Subcaves | A swath of the cavern ceiling suddenly collapsed 7920 | -10/Subcaves | A Subdweller sparked back to life 7920 | -10/Subcaves | A Subdweller sparked back to life 7920 | -10/Subcaves | A Subdweller sparked back to life 7941 | -10/Subcaves | Core integrity fell below 50% 7953 | -10/Subcaves | Ambushed by Subdweller buried in earth 7956 | -10/Subcaves | Core integrity fell below 20% 7962 | -10/Subcaves | Ambushed by Subdweller buried in earth 7984 | -10/Subcaves | Lost 7 parts (2p2n2u1w) 8049 | -10/Subcaves | Destroyed by BK-WRS(R) with Subdweller Laser Last Messages --------------- 07965_ The unstable cave ceiling collapses. 07965_ WN-KQE(R) destroyed. 07966_ Acquired 33 matter. 07968_ F0-7GK(R) destroyed. 07969_ The unstable cave ceiling collapses. 07980_ Acquired 20 matter. 07984_ The unstable cave ceiling collapses. 08012_ BO-Y95(R) destroyed. 08028_ The unstable cave ceiling collapses. 08032_ Dropped Lrg. Matter Pod. 08033_ Extracted 150 matter. 08033_ Destroyed Sub. Optics. 08038_ The unstable cave ceiling collapses. 08038_ 4C-LMK(R) knocked back. 08038_ Destroyed Scrap Shield. 08041_ Critical hit (Destroy). 08041_ Imp. Treads destroyed. 08041_ 4C-LMK(R) destroyed. 08045_ Acquired Lrg. Matter Pod. 08048_ The unstable cave ceiling collapses. Map ----- +----------------------------------------------------+ | ??????????????????# ##???????????????????????????? | | ?????????????????## #????????????????????????????? | | ????????????????## ##????????????????????????????? | | ????????????????# ##?????????????????????????????? | | ????????????????## #?????????????????????????????? | | ????????????????## #?????????????????????????????? | | ?????????????#### ##?????????????????????????????? | | ?????????????# ##??????????????????????????????? | | ????????????## ##???????????????????????????????? | | ???????????## ###????????????????????????????????? | | ???????????# ##??????????????????????????????????? | | ??????????## #???????????????????????????????????? | | ??????????# ##???????????????????????????????????? | | ???????#### #????????????????????????????????????? | | ?# # ##"## #????????????????????????????????????? | | ##" ###???????????????????????????????????? | | #"## ##???????????????????###????????????? | | #### # #??????########???? ?????????????? | | ????## ###??????? #??? #??????????????? | | ?????### ##?#######< #??# #???????????????? | | ?????##" #?### # ##? #???????????????? | | ?????#"" # #### ## #???????????????? | | ?????###### ### #= #???????????????? | | ?????????## & < ### #??????????????? | | ?????????# && R# ####?????????????????? | | ?????????# # # #@ # # ## #??????????? | | ?????????## % # #???????????? | | ??????????# ### # ## ## ##???????????? | | ?????????# ########### #?????????????????? | | ?????????# ###?????????# ????????????????? | | ?????????#####???????????# ?????????????? | | ??????????????????????????# ! #????????????? | | ?????????????????????????? #????????????? | | ??????????????????????????# % #????????????? | | ??????????????????????????# #???????????? | | ?????????????????????????? # ??????????? | | ?????????????????????????? ? ??????????? | | ?????????????????????????? ! ##? ??????????????? | | ?????????????????????????? % ??????????????????? | | ?????????????????????????? % ???????????????????? | | ?????????????????????????# ???????????????????? | | ?????????????????????????# ???????????????????? | | ?????????????????????????? #???????????????????? | | ?????????????????????????????????????????????????? | | ?????????????????????????????????????????????????? | | ?????????????????????????????????????????????????? | | ?????????????????????????????????????????????????? | | ?????????????????????????????????????????????????? | | ?????????????????????????????????????????????????? | | ?????????????????????????????????????????????????? | +----------------------------------------------------+ Best States ------------- Heat Dissipation 25 Energy Generation 10 Energy Capacity 250 Matter Stores 300 Matter Capacity 300 Sight Range 16 Terrain Scan Density 10 Armor Coverage 150 Evasion (%) 55 Targeting Accuracy 5 Recoil Reduction 2 Item Schematics ----------------- None Robot Schematics ------------------ None Fabricated ------------ Nothing Alien Tech Used ----------------- None Achievements -------------- None Challenges ------------ None Game ------ Seed MolecularShadeBank Manual? 0 Play Time 00:25:43 Cumulative 205.2 hours Start 2024.04.06 @ 12:44:18 End 2024.04.06 @ 13:11:22 Sessions 1 Manual Loads 0 Difficulty Rogue Special Mode None Game No. 206 Rogue 206 Adventurer 0 Explorer 0 Win Type - Total 4 Types 3/0/0/1/0/0/0/0/0 Lore% 66 Gallery% 76 Achievement% 61 Wizard Run 0 Options --------- Layout 1 ASCII 0 Keyboard 0 Movement Numpad Keybinds 0 Fullscreen 2 Font 24/Smallcaps Map View 50x35 Zoom Use 0% Tactical HUD 1 Map Filters NONE Filters NONE Steam 1 RUN: 55236e0c-1412-400f-8907-12e39cc491df